bitfinex/quotes_ETHUSD_20251012
["timestamp","ask_amount","ask_price","bid_price","bid_amount"]
[1760279886603,5.519687,3839.0,3838.9,0.10000001]
[1760279886808,5.618687,3839.0,3838.9,0.10000001]
[1760279887009,13.190252,3839.0,3838.9,0.10000001]
[1760279887189,12.78518491,3839.0,3838.9,0.10000001]
[1760279887812,2.60436069,3839.8,3838.9,0.10000001]
[1760279887813,0.099,3841.1,3838.9,0.55450001]
[1760279888019,2.815954,3841.0,3838.9,0.55450001]
[1760279888221,0.40844125,3840.1,3839.7,0.1296]
[1760279888435,1.92,3840.7,3839.7,0.1296]
[1760279888578,1.92,3840.5,3839.7,0.1296]
[1760279888783,1.92,3840.5,3840.1,2.60404014]
[1760279889015,1.92,3840.5,3839.7,2.73396112]
[1760279889199,0.40836271,3840.7,3839.7,0.1296]
[1760279889491,0.40836271,3840.7,3840.2,2.60402841]
[1760279889714,4.836034,3840.6,3839.7,0.1296]
[1760279890218,4.836034,3840.6,3839.8,2.60424787]
[1760279890608,4.836034,3840.6,3839.7,0.1296]
[1760279890781,2.60396323,3840.3,3838.7,0.4565]
[1760279890986,2.607415,3840.3,3839.3,0.1296]
[1760279891187,2.880793,3840.4,3839.6,2.6044332]
[1760279891530,5.20235973,3840.9,3839.7,2.60437013]
[1760279891844,3.204855,3840.8,3839.8,2.6043023]
[1760279892014,1.92,3840.9,3840.1,2.60408342]
[1760279892216,2.60362424,3840.8,3839.9,2.60420503]
[1760279892523,9.335236,3840.7,3839.6,0.002]
[1760279892731,0.099,3840.7,3839.6,0.002]
[1760279892946,0.099,3840.7,3839.9,2.60421623]
[1760279893225,0.099,3840.7,3839.7,2.60436195]
[1760279893430,5.07529,3841.1,3839.7,3.05887013]
[1760279893731,0.40834405,3841.4,3840.8,2.60359213]
[1760279893938,0.40834405,3841.4,3839.8,0.4545]
[1760279893939,0.40834405,3841.4,3840.4,2.60389542]
[1760279894225,0.40834405,3841.4,3840.7,2.60364118]
[1760279894622,0.40834405,3841.4,3840.6,2.60375953]
[1760279894824,0.2263,3842.0,3840.6,0.31878595]
[1760279894993,1.92,3841.9,3840.6,0.4545]
[1760279895198,0.40824899,3842.3,3840.7,0.1296]
[1760279895398,6.586745,3842.2,3840.8,2.60362424]
[1760279895598,0.40824899,3842.3,3841.5,2.60313019]
[1760279895826,0.32358321,3842.2,3841.6,2.60307824]
[1760279896031,0.40824899,3842.3,3841.4,2.60320565]
[1760279896237,0.40824899,3842.3,3841.0,3.05795979]
[1760279896441,0.40824899,3842.3,3841.4,2.60321757]
[1760279896600,0.40824899,3842.3,3840.7,2.60366418]
[1760279896601,4.240795,3843.1,3842.2,2.60262642]
[1760279896806,0.4466295,3843.0,3842.4,2.60249299]
[1760279897153,5.81692558,3843.1,3842.2,2.60260939]
[1760279897449,10.93350358,3843.0,3842.1,2.60273243]
[1760279897616,10.93350358,3843.0,3842.2,2.60266404]
[1760279897617,10.232227,3842.9,3842.2,2.60266404]
[1760279897810,1.92,3842.8,3842.2,2.60266404]
[1760279898144,1.92,3842.8,3842.3,2.60260697]
[1760279898353,1.92,3842.8,3841.5,2.60314039]
[1760279898354,1.92,3842.5,3841.0,0.4312]
[1760279898516,4.252244,3842.4,3840.5,0.4312]
[1760279898708,1.92,3841.9,3841.0,2.60346666]
[1760279898903,2.57412,3842.0,3841.1,2.60335502]
[1760279898904,6.921198,3842.0,3841.1,2.60335502]
[1760279899141,1.92,3841.9,3841.2,2.60334476]
[1760279899296,1.92,3841.9,3840.5,0.4312]
[1760279899297,0.45228121,3841.9,3840.5,0.4312]
[1760279899543,2.60330777,3841.3,3840.3,2.60389694]
[1760279899743,0.099,3841.4,3840.2,2.60402735]
[1760279900089,1.92,3841.1,3839.8,2.60428991]
[1760279900379,1.92,3841.1,3839.3,2.60660164]
[1760279900380,1.4293938,3841.0,3840.1,2.60407022]
[1760279900580,3.01147045,3841.5,3840.2,2.60400776]
[1760279900746,1.92,3841.2,3840.4,2.60388932]
[1760279901078,5.295294,3841.4,3840.3,0.4312]
[1760279901388,0.099,3841.7,3840.3,0.4312]
[1760279901592,2.0705,3841.8,3840.7,2.60366323]
[1760279901742,2.0705,3841.8,3840.2,2.60398099]
[1760279901743,2.60347882,3841.1,3840.2,2.60398099]
[1760279901947,2.60349543,3841.0,3840.2,2.60398099]
[1760279902243,1.92,3841.6,3839.0,0.4312]
[1760279902244,1.92,3841.5,3839.0,0.4312]
[1760279902471,0.099,3840.9,3839.6,2.60642209]
[1760279902640,2.60329767,3841.3,3839.6,2.60642209]
[1760279902641,1.92,3840.7,3839.6,0.002]
[1760279902845,2.60437013,3839.7,3839.6,0.002]
[1760279903043,4.52437013,3839.7,3839.6,0.002]
[1760279903273,7.38597291,3839.7,3839.6,0.002]
[1760279903456,8.01957291,3839.7,3839.6,0.002]
[1760279903668,8.01957291,3839.7,3839.3,1e-08]
[1760279903669,29.34969263,3839.4,3839.3,1e-08]
[1760279903866,29.34969263,3839.4,3838.8,0.002]
[1760279903867,3.23851286,3838.9,3838.8,1e-08]
[1760279904048,3.23851286,3838.9,3836.3,0.4312]
[1760279904049,3.23885218,3838.4,3836.3,0.4312]
[1760279904245,6.79557518,3838.4,3836.3,0.4312]
[1760279904446,6.64588018,3838.4,3836.9,0.4312]
[1760279904755,9.19948018,3838.4,3836.2,0.4312]
[1760279905056,9.19948018,3838.4,3836.6,2.6064727]
[1760279905250,12.35270918,3838.4,3836.9,2.60626855]
[1760279905442,13.06109635,3838.4,3836.8,2.60633323]
[1760279905647,13.06109635,3838.4,3836.2,3.03788628]
[1760279905848,13.06109635,3838.4,3837.1,2.60612497]
[1760279906058,12.72773535,3838.4,3837.1,2.60612497]
[1760279906262,11.72991935,3838.4,3836.7,2.60640511]
[1760279906561,12.36351935,3838.4,3836.6,0.4312]
[1760279906750,12.7721312,3838.4,3836.6,0.4312]
[1760279906953,12.7721312,3838.4,3836.1,0.002]
[1760279907177,20.7807332,3838.4,3836.9,2.60625673]
[1760279907563,20.7807332,3838.4,3836.9,2.60625869]
[1760279907893,20.7807332,3838.4,3836.5,2.60652838]
[1760279907894,20.5090652,3838.4,3836.5,2.60652838]
[1760279908089,20.5090652,3838.4,3836.1,0.002]
[1760279908090,20.5090652,3838.4,3836.4,2.6065902]
[1760279908388,32.7950062,3838.4,3836.7,2.6063558]
[1760279908691,32.7950062,3838.4,3836.1,0.002]
[1760279908853,32.7950062,3838.4,3836.3,0.1296]
[1760279909048,32.7950062,3838.4,3837.9,0.002]
[1760279909274,33.6468582,3838.4,3837.9,0.002]
[1760279909568,32.4287292,3838.4,3837.9,0.002]
[1760279909766,30.2289672,3838.4,3837.9,0.002]
[1760279910374,11.3918502,3838.4,3837.9,0.002]
[1760279910882,7.90366403,3838.4,3837.9,0.002]
[1760279911089,7.49505218,3838.4,3837.9,0.002]
[1760279911288,17.20085318,3838.4,3837.9,0.002]
[1760279911455,15.54244018,3838.4,3837.9,0.002]
[1760279911857,5.688807,3838.4,3837.9,0.002]
[1760279912078,8.86293988,3838.4,3837.9,0.002]
[1760279912273,11.37980888,3838.4,3837.9,0.002]
[1760279912466,9.49002988,3838.4,3837.9,0.002]
[1760279912875,10.12362988,3838.4,3837.9,0.002]
[1760279913389,35.82503288,3838.4,3837.9,0.002]
[1760279914883,34.02147888,3838.4,3837.9,0.002]
[1760279915389,35.82503288,3838.4,3837.9,0.002]
[1760279916892,33.23912371,3838.0,3837.9,1e-08]
[1760279917192,2.60579528,3837.6,3837.5,1e-08]
[1760279917489,35.15939528,3837.6,3837.5,1e-08]
[1760279917677,35.40499528,3837.6,3837.5,1e-08]
[1760279917878,38.00020711,3837.6,3837.5,1e-08]
[1760279918080,20.56352911,3837.6,3837.5,1e-08]
[1760279919093,20.97230833,3837.6,3837.5,1e-08]
[1760279921105,14.28954833,3837.6,3837.5,1e-08]
[1760279921285,12.26792111,3837.6,3837.5,1e-08]
[1760279921591,9.67270928,3837.6,3837.5,1e-08]
[1760279921955,35.40499528,3837.6,3837.5,1e-08]
[1760279922591,2.60674625,3836.2,3836.1,0.002]
[1760279922792,23.86818525,3836.2,3836.1,0.002]
[1760279923093,21.47799325,3836.2,3836.1,0.002]
[1760279923397,22.00350301,3836.2,3836.1,0.002]
[1760279923797,20.17654601,3836.2,3836.1,0.002]
[1760279924094,26.02767601,3836.2,3836.1,0.002]
[1760279924312,26.02767601,3836.2,3833.3,2.60871538]
[1760279924313,0.6336,3835.3,3833.3,0.4312]
[1760279924597,0.6336,3835.3,3829.6,0.14603002]
[1760279924598,16.585454,3834.7,3832.1,0.4312]
[1760279924814,16.585454,3834.7,3831.8,0.234]
[1760279924815,2.574138,3834.5,3832.5,0.234]
[1760279924996,1.92,3834.7,3833.1,2.60883973]
[1760279924997,2.553166,3834.3,3833.1,2.60883973]
[1760279925161,2.981016,3834.1,3832.9,2.60893139]
[1760279925364,3.224516,3834.1,3832.5,0.234]
[1760279925667,0.2435,3834.1,3832.7,2.60912672]
[1760279925977,0.2435,3834.1,3833.2,2.60877705]
[1760279926170,0.2435,3834.1,3832.5,0.51833987]
[1760279926171,1.92,3833.6,3832.5,0.28433987]
[1760279926371,5.756661,3833.4,3832.5,2.60924916]
[1760279926596,5.756661,3833.4,3831.8,0.234]
[1760279926765,0.8771,3833.5,3832.5,2.60920786]
[1760279926961,2.020107,3833.8,3832.3,0.6877]
[1760279927163,1.92,3833.7,3832.3,0.4592]
[1760279927404,1.92,3833.5,3832.6,2.60918199]
[1760279927614,6.086503,3833.4,3832.6,2.60914411]
[1760279927761,1.92,3833.6,3832.9,2.60898657]
[1760279928086,0.2435,3833.7,3832.9,2.60898657]
[1760279928274,0.2435,3833.7,3832.8,2.60904784]
[1760279928672,0.2435,3833.7,3832.6,0.26091441]
[1760279928991,1.92,3833.5,3832.6,0.26091441]
[1760279929197,5.454479,3833.4,3832.7,2.60906069]
[1760279929393,0.2435,3833.7,3832.2,0.4612]
[1760279929595,1.92,3833.5,3832.3,2.60939905]
[1760279929914,4.266028,3833.6,3833.0,2.60885849]
[1760279930114,0.40913577,3833.9,3832.7,0.4612]
[1760279930461,0.1455,3834.3,3832.7,0.4612]
[1760279930667,2.541294,3834.9,3832.8,0.30703673]
[1760279930960,2.60805155,3834.3,3832.8,2.91609314]
[1760279931161,9.948755,3833.9,3832.5,2.60925217]
[1760279931464,9.948755,3833.9,3831.8,0.234]
[1760279931465,1.92,3833.5,3831.8,0.234]
[1760279931666,1.92,3833.3,3832.2,2.60945003]
[1760279931912,27.93374934,3833.4,3832.0,14.5]
[1760279931913,2.5605,3833.0,3832.0,14.5]
[1760279932060,2.5605,3833.0,3832.0,17.10953698]
[1760279932265,2.5605,3833.0,3832.1,2.60953524]
[1760279932492,0.6336,3833.1,3832.5,2.6092498]
[1760279932699,0.099,3833.6,3832.6,2.60914149]
[1760279932896,1.92,3833.4,3832.6,2.60914204]
[1760279933076,2.672491,3833.5,3832.2,2.60946714]
[1760279933415,1.92,3833.4,3832.1,0.3516]
[1760279933697,0.099,3833.6,3832.4,0.1304]
[1760279933876,2.530815,3833.5,3832.4,0.1304]
[1760279934067,2.60756526,3835.0,3832.4,0.1304]
[1760279934270,6.096691,3834.0,3833.3,2.60871767]
[1760279934469,0.099,3834.1,3832.5,0.4612]
[1760279934813,0.40905879,3834.7,3832.8,2.60905865]
[1760279934966,0.40905879,3834.7,3833.6,0.1304]
[1760279935172,1.92,3834.5,3833.1,2.6088519]
[1760279935366,0.40905879,3834.7,3833.1,2.6088519]
[1760279935367,1.17718818,3834.4,3833.1,0.1304]
[1760279935565,4.257421,3834.3,3833.4,2.60863573]
[1760279935794,4.257421,3834.3,3832.6,1.92]
[1760279935795,2.72015,3834.3,3832.8,0.1304]
[1760279936000,0.099,3834.4,3833.1,2.60881092]
[1760279936186,0.40905879,3834.7,3833.2,14.9612]
[1760279936501,0.40905879,3834.7,3834.3,2.60802527]
[1760279936670,0.40905879,3834.7,3833.6,0.1304]
[1760279936671,0.099,3834.6,3833.6,0.1304]
[1760279936868,0.40905879,3834.7,3832.3,0.4612]
[1760279936869,2.5536,3834.3,3832.3,0.4612]
[1760279937100,8.477598,3833.8,3832.5,1.92]
[1760279937300,0.099,3834.0,3833.3,2.60867167]
[1760279937615,2.536,3834.1,3832.7,3.07030659]
[1760279937816,2.536,3834.1,3833.4,2.60862235]
[1760279938201,0.40906914,3834.3,3833.1,0.4612]
[1760279938418,0.099,3834.8,3833.1,0.4612]
[1760279938813,1.92,3834.7,3833.9,2.60824589]
[1760279939000,0.099,3834.8,3834.0,2.60821865]
[1760279939328,0.099,3834.8,3833.5,2.6085151]
[1760279939631,0.40901958,3834.9,3834.4,2.60795484]
[1760279939831,0.40901958,3834.9,3833.0,1.92]
[1760279939832,4.85766,3834.4,3833.0,1.92]
[1760279940031,2.60810599,3834.2,3833.1,2.60885445]
[1760279940233,4.651196,3833.9,3832.1,0.6824]
[1760279940531,0.6336,3833.3,3831.5,0.4612]
[1760279940756,2.60879635,3833.2,3832.3,2.60933668]
[1760279940933,5.86681,3833.1,3831.8,2.60967233]
[1760279941239,5.76766,3832.7,3831.3,0.2212]
[1760279941545,2.60911044,3832.8,3831.9,2.60962564]
[1760279941728,2.60921275,3832.6,3831.5,1.92]
[1760279941895,2.60921275,3832.6,3831.8,2.60972161]
[1760279942102,0.099,3832.7,3832.2,2.60945899]
[1760279942354,0.099,3832.7,3831.5,1.92]
[1760279942355,11.431279,3832.6,3831.5,1.92]
[1760279942641,0.099,3832.7,3831.9,2.60965494]
[1760279942830,2.786,3832.6,3831.9,2.60965494]
[1760279943037,4.25815,3833.1,3831.5,1.92]
[1760279943198,6.86701316,3833.1,3832.2,2.60945783]
[1760279943535,2.70794595,3833.0,3832.2,2.60945783]
[1760279943737,0.26526,3833.3,3832.6,2.60914325]
[1760279943915,0.26526,3833.3,3831.9,2.60962933]
[1760279943916,1.92,3833.2,3832.5,2.60925803]
[1760279944106,4.066055,3833.1,3832.5,2.60925803]
[1760279944306,0.6336,3832.9,3831.7,17.10979293]
[1760279944510,0.099,3832.8,3832.3,0.002]
[1760279945019,0.099,3832.8,3832.3,2.61137799]
[1760279945226,0.6336,3833.1,3832.3,0.002]
[1760279945420,2.60897874,3833.0,3832.3,0.002]
[1760279945617,0.6336,3832.8,3832.3,0.002]
[1760279945817,0.67444565,3833.3,3832.4,2.60933096]
[1760279946114,0.67444565,3833.3,3832.3,0.002]
[1760279946115,7.70584,3832.9,3832.3,0.002]
[1760279946439,0.6336,3833.0,3832.3,0.002]
[1760279946440,10.55265633,3832.7,3832.3,0.002]
[1760279946638,2.60912833,3832.7,3832.3,0.002]
[1760279946841,2.60907172,3832.8,3832.3,0.002]
[1760279947157,11.273848,3832.8,3832.3,0.002]
[1760279947367,10.73824096,3832.4,3832.3,0.001]
[1760279947642,10.73824096,3832.4,3831.9,0.002]
[1760279947643,17.48434334,3832.0,3831.9,0.002]
[1760279947845,17.48434334,3832.0,3829.5,2.61125659]
[1760279947846,2.61046051,3830.8,3828.8,17.33298174]
[1760279948059,0.137,3830.7,3829.5,2.61125882]
[1760279948291,5.402821,3830.6,3829.7,2.61116268]
[1760279948421,4.810801,3830.6,3829.2,2.61151154]
[1760279948740,0.236,3830.7,3829.2,2.61151154]
[1760279948741,0.236,3830.7,3829.3,0.26115115]
[1760279948942,0.40943774,3830.9,3828.8,14.7212]
[1760279949120,0.40943774,3830.9,3830.2,2.61076294]
[1760279949442,0.40943774,3830.9,3830.3,2.61070813]
[1760279949641,0.40943774,3830.9,3829.6,2.61123877]
[1760279949642,2.1546,3831.4,3830.5,2.61061105]
[1760279949942,0.64395705,3831.4,3830.8,2.61036147]
[1760279950148,0.64395705,3831.4,3830.7,2.61043105]
[1760279950443,0.64395705,3831.4,3830.9,2.6103179]
[1760279950444,0.2346,3831.4,3830.9,2.6103179]
[1760279950641,0.2346,3831.4,3830.1,0.2212]
[1760279950642,2.84558318,3832.1,3830.5,2.61062524]
[1760279950843,2.84558318,3832.1,3831.0,2.61027078]
[1760279950844,4.734865,3831.8,3831.0,2.61027078]
[1760279951009,4.734865,3831.8,3830.4,0.4612]
[1760279951010,1.92,3831.7,3830.4,0.4612]
[1760279951209,3.37459119,3831.7,3830.8,2.61037006]
[1760279951433,0.76476805,3831.7,3830.9,2.61033273]
[1760279951637,0.76476805,3831.7,3831.0,2.61027846]
[1760279951831,4.197865,3831.7,3831.1,2.61021366]
[1760279952045,0.40931791,3831.9,3830.4,0.4612]
[1760279952243,0.40931791,3831.9,3830.7,2.61048894]
[1760279952454,0.099,3832.4,3830.5,14.5]
[1760279952455,0.099,3832.4,3830.8,0.4612]
[1760279952620,2.60828071,3834.0,3831.0,2.61028452]
[1760279952621,21.572663,3833.9,3831.0,2.61028452]
[1760279952828,0.0994,3833.0,3832.2,2.60945957]
[1760279953357,0.0994,3833.0,3832.0,2.60953927]
[1760279953525,0.13363605,3838.6,3830.1,0.6824]
[1760279953526,24.18977,3832.7,3830.1,0.6824]
[1760279953731,24.18977,3832.7,3829.7,0.45313069]
[1760279953732,2.88157,3831.2,3829.7,0.45313069]
[1760279953932,10.21509,3831.0,3829.2,0.4612]
[1760279954228,0.236,3831.1,3830.4,2.61063932]
[1760279954435,0.236,3831.1,3830.2,2.61076172]
[1760279954659,2.74723154,3831.1,3830.3,2.61071362]
[1760279954860,0.137,3831.1,3830.5,2.61061804]
[1760279955183,0.1366,3831.9,3831.1,2.61021497]
[1760279955478,0.1366,3831.9,3830.5,0.52213821]
[1760279955479,0.1366,3831.9,3831.2,2.61010908]
[1760279955628,0.1366,3831.9,3830.5,3.13271034]
[1760279955629,0.0994,3832.1,3830.5,0.52213821]
[1760279955958,2.60966142,3832.0,3830.5,0.52213821]
[1760279956158,1.48123959,3835.2,3830.6,0.4612]
[1760279956365,0.0997,3832.2,3830.8,2.61042079]
[1760279956677,0.0997,3832.2,3830.7,0.54336249]
[1760279956678,0.40927518,3832.4,3831.8,2.60968435]
[1760279956877,0.40927518,3832.4,3831.4,2.61000977]
[1760279957028,3.391894,3832.3,3830.9,14.9612]
[1760279957234,3.391894,3832.3,3831.3,0.1304]
[1760279957474,2.60949064,3832.2,3831.3,0.1304]
[1760279957680,3.0186075,3832.4,3831.6,2.60981652]
[1760279957846,0.40927518,3832.4,3831.8,2.6097389]
[1760279958163,2.60810118,3834.3,3831.8,2.6097389]
[1760279958164,0.0997,3833.3,3831.9,2.60960639]
[1760279958375,1.92,3832.9,3832.0,2.60954389]
[1760279958575,5.58914639,3832.8,3832.0,2.60954389]
[1760279958876,2.60907339,3832.8,3832.0,2.60954389]
[1760279959177,2.473106,3832.7,3832.0,2.60954389]
[1760279959354,2.011589,3832.7,3832.0,2.60954389]
[1760279959662,2.60914719,3832.7,3832.0,2.60954389]
[1760279960060,0.7333,3832.6,3831.0,0.52213821]
[1760279960263,2.60945221,3832.3,3830.8,0.4301]
[1760279960558,0.1001,3832.5,3830.9,0.1304]
[1760279960758,0.4092959,3832.7,3831.3,2.74041911]
[1760279960925,0.4092959,3832.7,3832.0,2.60955621]
[1760279961131,0.50384392,3832.7,3831.4,0.4301]
[1760279961462,0.1001,3833.0,3831.6,0.1304]
[1760279961463,2.7090542,3833.0,3831.6,0.1304]
[1760279961667,0.1001,3833.0,3832.2,2.60946246]
[1760279961886,0.1001,3833.0,3831.6,0.1304]
[1760279961887,7.44109,3832.9,3831.6,0.1304]
[1760279962088,7.44109,3832.9,3831.5,14.5]
[1760279962089,0.1001,3833.3,3830.9,1.92]
[1760279962398,1.92,3833.9,3831.9,0.002]
[1760279962399,2.60944926,3832.3,3831.9,0.002]
[1760279962544,5.5345794,3832.2,3831.9,0.002]
[1760279962896,0.1001,3832.6,3831.9,0.002]
[1760279963244,2.60930748,3832.5,3831.9,0.002]
[1760279963748,0.1001,3832.6,3831.9,0.002]
[1760279963974,0.001,3832.8,3832.2,2.60940455]
[1760279964173,0.001,3832.8,3832.1,2.6095276]
[1760279964482,0.001,3832.8,3832.4,2.60928255]
[1760279964779,0.001,3832.8,3831.9,0.002]
[1760279964780,0.001,3832.8,3832.7,2.60912672]
[1760279964951,0.001,3832.8,3832.2,0.2211]
[1760279965274,0.001,3832.8,3832.0,0.73427756]
[1760279965275,0.001,3832.8,3832.3,14.5]
[1760279965443,0.001,3832.8,3832.7,2.60912672]
[1760279966878,0.001,3832.8,3832.3,14.5]
[1760279967100,0.001,3832.8,3832.3,17.1093959]
[1760279967250,0.001,3832.8,3832.6,2.60919388]
[1760279967586,0.001,3832.8,3832.6,2.60917873]
[1760279968189,0.001,3832.8,3832.6,2.60918402]
[1760279969085,0.001,3832.8,3832.4,2.60928552]
[1760279969266,0.001,3832.8,3832.5,2.60925436]
[1760279969467,0.001,3832.8,3832.6,2.60918259]
[1760279969667,3.4876,3832.7,3831.9,0.002]
[1760279969866,0.34886,3832.6,3831.9,0.002]
[1760279970270,2.60926288,3832.5,3831.9,0.002]
[1760279971292,0.001,3832.8,3831.9,0.002]
[1760279971589,2.60922523,3832.6,3831.9,2.61165753]
[1760279971889,5.184321,3832.7,3831.9,2.61165753]
[1760279971890,2.60927126,3832.5,3831.9,2.61165753]
[1760279972489,0.1011,3832.8,3832.1,2.60951863]
[1760279972786,2.71020339,3832.8,3832.1,2.60951863]
[1760279972979,2.392044,3832.7,3832.1,2.60951863]
[1760279973453,0.51022474,3832.6,3831.9,0.002]
[1760279973896,3.11944329,3832.6,3831.9,2.61164309]
[1760279974095,2.71016214,3832.8,3832.1,2.60952229]
[1760279974262,2.71016214,3832.8,3832.2,2.60940053]
[1760279974263,0.001,3832.8,3832.2,2.60940053]
[1760279974469,0.001,3832.8,3832.3,2.60939228]
[1760279974877,0.001,3832.8,3832.0,2.60960334]
[1760279975081,0.001,3832.8,3832.7,2.60912672]
[1760279976583,0.1011,3832.8,3832.2,14.5]
[1760279976783,0.001,3832.8,3831.8,0.4301]
[1760279977106,0.001,3832.8,3831.9,0.1324]
[1760279977406,0.001,3832.8,3832.5,2.60925782]
[1760279978106,0.001,3832.8,3832.4,2.60930598]
[1760279979096,0.001,3832.8,3832.0,14.5]
[1760279979300,8.047011,3832.7,3832.0,14.5]
[1760279979499,2.60926795,3832.5,3831.9,0.002]
[1760279979689,2.7093222,3832.6,3831.9,0.002]
[1760279979884,2.7093222,3832.6,3831.9,2.6116684]
[1760279980071,2.60927555,3832.5,3831.9,2.6116684]
[1760279980485,2.60927555,3832.5,3831.9,0.002]
[1760279980486,5.506232,3832.4,3831.9,0.002]
[1760279980712,10.35364034,3832.0,3831.9,0.002]
[1760279980916,10.98724034,3832.0,3831.9,0.002]
[1760279981114,11.08734034,3832.0,3831.9,0.002]
[1760279981616,9.41000034,3832.0,3831.9,0.002]
[1760279981789,9.78995206,3832.0,3831.9,0.002]
[1760279981997,4.54525506,3832.0,3831.9,0.002]
[1760279982199,7.83620434,3832.0,3831.9,0.002]
[1760279982421,3.34330334,3832.0,3831.9,0.002]
[1760279982617,11.85987134,3832.0,3831.9,0.002]
[1760279982991,13.77987134,3832.0,3831.9,0.002]
[1760279983525,11.75593834,3832.0,3831.9,0.002]
[1760279983702,13.19248254,3832.0,3831.9,0.002]
[1760279983890,6.59974754,3832.0,3831.9,0.002]
[1760279984087,0.001,3832.8,3831.9,0.002]
[1760279984488,0.001,3832.8,3832.2,2.60940348]
[1760279984701,2.61006988,3832.8,3831.9,0.002]
[1760279984896,2.296527,3832.7,3832.0,2.60955588]
[1760279985098,3.14818341,3832.7,3831.9,0.002]
[1760279985298,2.60930884,3832.5,3831.9,0.002]
[1760279985513,2.70925279,3832.7,3832.0,2.6096023]
[1760279985717,0.1001,3832.7,3831.9,0.002]
[1760279985915,2.60921347,3832.6,3831.9,2.6116662]
[1760279986116,0.1001,3832.7,3831.9,2.61165065]
[1760279986441,0.6336,3832.6,3831.9,0.002]
[1760279986605,2.6094464,3832.3,3831.9,0.002]
[1760279986790,2.60948071,3832.2,3831.9,0.002]
[1760279986992,2.60946855,3832.2,3831.9,0.002]
[1760279987202,0.1001,3832.3,3831.9,0.002]
[1760279987399,2.709508,3832.3,3831.9,0.002]
[1760279988027,2.609408,3832.3,3831.9,0.002]
[1760279988207,0.1001,3832.2,3831.9,0.002]
[1760279988947,2.70957226,3832.2,3831.9,0.002]
[1760279989237,2.60953673,3832.1,3831.9,0.002]
[1760279989408,0.1001,3832.1,3831.9,0.002]
[1760279989607,2.70970334,3832.0,3831.9,0.002]
[1760279989811,12.83344734,3832.0,3831.9,0.002]
[1760279990225,12.32978234,3832.0,3831.9,0.002]
[1760279990404,0.53189255,3832.1,3831.9,0.002]
[1760279990610,2.60952936,3832.2,3831.9,0.002]
[1760279990816,2.6095644,3832.1,3831.9,0.002]
[1760279991043,2.60960334,3832.0,3831.9,0.002]
[1760279991231,2.60955092,3832.1,3831.9,0.002]
[1760279991435,2.70965092,3832.1,3831.9,0.002]
[1760279991950,2.60960334,3832.0,3831.9,0.002]
[1760279992108,2.70965289,3832.1,3831.9,0.002]
[1760279992647,2.60960334,3832.0,3831.9,0.002]
[1760279993325,2.70965632,3832.1,3831.9,0.002]
[1760279993527,6.22260334,3832.0,3831.9,0.002]
[1760279993727,6.32270334,3832.0,3831.9,0.002]
[1760279995048,5.96650334,3832.0,3831.9,0.002]
[1760279995748,12.23985034,3832.0,3831.9,0.002]
[1760279996554,14.09726234,3832.0,3831.9,0.002]
[1760279996753,15.53368515,3832.0,3831.9,0.002]
[1760279997152,10.04046715,3832.0,3831.9,0.002]
[1760279997470,17.98012915,3832.0,3831.9,0.002]
[1760279997623,18.38941187,3832.0,3831.9,0.002]
[1760279998419,37.13585987,3832.0,3831.9,0.002]
[1760279998664,31.41957687,3832.0,3831.9,0.002]
[1760279999017,27.87258187,3832.0,3831.9,0.002]
[1760279999454,7.39644987,3832.0,3831.9,0.002]
[1760279999661,6.66274987,3832.0,3831.9,0.002]
[1760279999860,8.17110406,3832.0,3831.9,0.002]
[1760280000169,5.03898606,3832.0,3831.9,0.002]
[1760280000350,5.67258606,3832.0,3831.9,0.002]
[1760280000657,9.74860106,3832.0,3831.9,0.002]
[1760280000833,8.91096906,3832.0,3831.9,0.002]
[1760280001037,3.48132656,3832.0,3831.9,0.002]
[1760280001239,7.56504806,3832.0,3831.9,0.002]
[1760280001440,8.19864806,3832.0,3831.9,0.002]
[1760280001637,14.72263734,3832.0,3831.9,0.002]
[1760280001849,11.82362334,3832.0,3831.9,0.002]
[1760280002164,8.74784434,3832.0,3831.9,0.002]
[1760280002362,9.88357625,3832.0,3831.9,0.002]
[1760280002543,23.36583625,3832.0,3831.9,0.002]
[1760280002728,5.76543525,3832.0,3831.9,0.002]
[1760280003058,8.46481725,3832.0,3831.9,0.002]
[1760280003227,5.76543525,3832.0,3831.9,0.002]
[1760280003427,12.94005825,3832.0,3831.9,0.002]
[1760280003628,19.80190325,3832.0,3831.9,0.002]
[1760280004330,18.70881125,3832.0,3831.9,0.002]
[1760280004565,18.59195925,3832.0,3831.9,0.002]
[1760280004770,12.13424825,3832.0,3831.9,0.002]
[1760280005344,12.54355696,3832.0,3831.9,0.002]
[1760280005658,22.57041696,3832.0,3831.9,0.002]
[1760280005964,21.72403896,3832.0,3831.9,0.002]
[1760280006280,21.25668996,3832.0,3831.9,0.002]
[1760280006766,22.65957596,3832.0,3831.9,0.002]
[1760280007736,36.80834396,3832.0,3831.9,0.002]
[1760280009468,36.80834396,3832.0,3831.5,1e-08]
[1760280009671,5.29897576,3831.6,3831.5,1e-08]
[1760280009879,35.29897576,3831.6,3831.5,1e-08]
[1760280010050,35.39947576,3831.6,3831.5,1e-08]
[1760280010560,35.80893969,3831.6,3831.5,1e-08]
[1760280011078,14.15010369,3831.6,3831.5,1e-08]
[1760280011242,16.3465819,3831.6,3831.5,1e-08]
[1760280011787,38.0054179,3831.6,3831.5,1e-08]
[1760280012506,38.36396974,3831.6,3831.5,1e-08]
[1760280012822,38.0054179,3831.6,3831.5,1e-08]
[1760280013378,15.6170169,3831.6,3831.5,1e-08]
[1760280013792,27.6690389,3831.6,3831.5,1e-08]
[1760280013974,25.9616099,3831.6,3831.5,1e-08]
[1760280014802,7.3718179,3831.6,3831.5,1e-08]
[1760280015004,19.4303229,3831.6,3831.5,1e-08]
[1760280015311,19.65445897,3831.6,3831.5,1e-08]